fUST/lending_fUST_20250523
["ID","MTS","AMOUNT","RATE_DAILY","PERIOD"]
[362050147,1747948264375,-430.0,0.00022191,2]
[362050148,1747948264384,-430.0,0.00022191,2]
[362050149,1747948264395,-430.0,0.00022191,2]
[362050150,1747948264405,-499.62,0.00022191,2]
[362050151,1747948264415,-430.0,0.00022191,2]
[362050152,1747948264424,-430.0,0.00022191,2]
[362050153,1747948264434,-430.0,0.00022191,2]
[362050154,1747948264444,-579.69,0.00022191,2]
[362050155,1747948264454,-2845.23,0.00022191,2]
[362050156,1747948264464,-430.0,0.00022191,2]
[362050157,1747948264474,-430.0,0.00022191,2]
[362050158,1747948264484,-430.0,0.00022191,2]
[362050159,1747948264494,-430.0,0.00022191,2]
[362050160,1747948264503,-430.0,0.00022191,2]
[362050161,1747948264515,-430.0,0.00022191,2]
[362050162,1747948264525,-508.9,0.00022191,2]
[362050163,1747948264535,-265.41,0.00022191,2]
[362050164,1747948264548,-430.0,0.00022191,2]
[362050165,1747948264558,-430.0,0.00022191,2]
[362050166,1747948264567,-430.0,0.00022191,2]
[362050167,1747948264577,-430.0,0.00022191,2]
[362050168,1747948264589,-430.0,0.00022191,2]
[362050169,1747948264598,-151.0,0.00022191,7]
[362050170,1747948264607,-430.0,0.00022191,2]
[362050171,1747948264617,-194.8,0.00022191,2]
[362050172,1747948264628,-430.0,0.00022191,2]
[362050173,1747948264638,-289.8,0.00022191,2]
[362050174,1747948264647,-788.27,0.00022191,2]
[362050175,1747948264657,-430.0,0.00022191,2]
[362050176,1747948264667,-526.75,0.00022191,2]
[362050177,1747948264677,-927.07,0.00022191,2]
[362050178,1747948264687,-430.0,0.00022191,2]
[362050179,1747948264697,-430.0,0.00022191,2]
[362050180,1747948264707,-430.0,0.00022191,2]
[362050181,1747948264717,-157.05,0.00022191,2]
[362050182,1747948264727,-713.8,0.00022191,2]
[362050183,1747948264737,-2180.78,0.00022191,2]
[362050184,1747948264747,-430.0,0.00022191,2]
[362050185,1747948264756,-430.0,0.00022191,2]
[362050186,1747948264765,-1000.0,0.00022215,2]
[362050187,1747948264775,-1200.0,0.00022215,2]
[362050188,1747948264785,-1947.88098233,0.00022245,6]
[362050189,1747948264795,-1000.0,0.00022302,2]
[362050190,1747948264805,-430.0,0.00022465,2]
[362050191,1747948264815,-336.25689891,0.00022465,2]
[362050192,1747948264825,-430.0,0.00022465,2]
[362050193,1747948264835,-430.0,0.00022465,2]
[362050194,1747948264844,-430.0,0.00022465,2]
[362050195,1747948264854,-430.0,0.00022465,2]
[362050196,1747948264864,-430.0,0.00022465,2]
[362050197,1747948264874,-430.0,0.00022465,2]
[362050198,1747948264883,-394.89932605,0.00022465,2]
[362050199,1747948264894,-418.08,0.00022465,2]
[362050200,1747948264904,-430.0,0.00022465,2]
[362050201,1747948264913,-430.0,0.00022465,2]
[362050202,1747948264922,-430.0,0.00022465,2]
[362050203,1747948264932,-530.65,0.00022465,2]
[362050204,1747948264942,-151.0,0.00022465,7]
[362050205,1747948264951,-430.0,0.00022465,2]
[362050206,1747948264960,-430.0,0.00022465,2]
[362050207,1747948264970,-151.0,0.00022465,7]
[362050208,1747948264981,-530.0,0.00022465,2]
[362050209,1747948264991,-430.0,0.00022465,2]
[362050210,1747948265000,-430.0,0.00022465,2]
[362050211,1747948265010,-430.0,0.00022465,2]
[362050212,1747948265020,-430.0,0.00022465,2]
[362050213,1747948265029,-301.158653,0.00022465,7]
[362050214,1747948265038,-301.158653,0.00022465,7]
[362050215,1747948265048,-151.0,0.00022465,2]
[362050216,1747948265058,-151.0,0.00022465,7]
[362050217,1747948265067,-430.0,0.00022465,2]
[362050218,1747948265077,-430.0,0.00022465,2]
[362050219,1747948265086,-430.0,0.00022465,2]
[362050220,1747948265096,-836.2,0.00022465,2]
[362050221,1747948265247,-430.0,0.00022465,2]
[362050222,1747948265257,-581.02,0.00022465,2]
[362050223,1747948265266,-430.0,0.00022465,2]
[362050224,1747948265275,-488.55976635,0.00022465,2]
[362050225,1747948265284,-430.0,0.00022465,2]
[362050226,1747948265294,-372.42,0.00022465,2]
[362050227,1747948265303,-480.1,0.00022465,2]
[362050228,1747948265313,-430.0,0.00022465,2]
[362050229,1747948265323,-430.0,0.00022465,2]
[362050230,1747948265332,-430.0,0.00022465,2]
[362050231,1747948265341,-542.73,0.00022465,2]
[362050232,1747948265351,-929.18,0.00022465,2]
[362050233,1747948265360,-423.45,0.00022465,2]
[362050234,1747948265370,-563.2,0.00022465,2]
[362050235,1747948265380,-168.744296,0.00022465,7]
[362050236,1747948265390,-2161.29,0.00022465,2]
[362050237,1747948265399,-430.0,0.00022465,2]
[362050238,1747948265408,-168.744296,0.00022465,7]
[362050239,1747948265418,-430.0,0.00022465,2]
[362050240,1747948265427,-290.98,0.00022465,2]
[362050241,1747948265437,-430.0,0.00022465,2]
[362050242,1747948265446,-711.67,0.00022465,2]
[362050243,1747948265456,-430.0,0.00022465,2]
[362050244,1747948265465,-430.0,0.00022465,2]
[362050245,1747948265474,-430.0,0.00022465,2]
[362050246,1747948265484,-430.0,0.00022465,2]
[362050247,1747948265494,-499.62,0.00022465,2]
[362050248,1747948265503,-525.82,0.00022465,2]
[362050249,1747948265513,-287.64,0.00022465,2]
[362050250,1747948265522,-430.0,0.00022465,2]
[362050251,1747948265532,-579.69,0.00022465,2]
[362050252,1747948265543,-2845.23,0.00022465,2]
[362050253,1747948265557,-430.0,0.00022465,2]
[362050254,1747948265567,-430.0,0.00022465,2]
[362050255,1747948265576,-430.0,0.00022465,2]
[362050256,1747948265587,-151.0,0.00022465,7]
[362050257,1747948265596,-430.0,0.00022465,2]
[362050258,1747948265605,-124.27769116,0.00022465,2]
[362050259,1747948265887,-430.0,0.00019726,2]
[362050260,1747948265896,-430.0,0.0002,2]
[362050261,1747948265906,-430.0,0.00020273,2]
[362050262,1747948265916,-3.2563446,0.00020547,2]
[362050263,1747948265928,-426.7436554,0.00020547,2]
[362050264,1747948265937,-430.0,0.00020821,2]
[362050265,1747948265946,-305.72230884,0.00022465,2]
[362050266,1747948265956,-151.0,0.00022465,7]
[362050267,1747948265965,-324.393284,0.00022465,7]
[362050268,1747948265975,-324.393284,0.00022465,7]
[362050269,1747948265984,-151.0,0.00022465,7]
[362050270,1747948265994,-303.72364722,0.00022465,2]
[362050271,1747948266006,-126.27635278,0.00022465,2]
[362050272,1747948266016,-214.08864722,0.00022465,2]
[362050273,1747948266028,-219.80135278,0.00022465,2]
[362050274,1747948266039,-430.0,0.00022465,2]
[362050275,1747948266049,-283.44339947,0.00022465,2]
[362050276,1747948266061,-146.55660053,0.00022465,2]
[362050277,1747948266070,-788.27,0.00022465,2]
[362050278,1747948266079,-362.63412684,0.00022465,2]
[362050279,1747948266194,-67.36587316,0.00022465,2]
[362050280,1747948266205,-526.75,0.00022465,2]
[362050281,1747948266215,-41.91808097,0.00022465,2]
[362050282,1747948266227,-885.15191903,0.00022465,2]
[362050283,1747948266237,-158.54414029,0.00022465,2]
[362050284,1747948266254,-271.45585971,0.00022465,2]
[362050285,1747948266265,-139.95044714,0.00022465,2]
[362050286,1747948266277,-290.04955286,0.00022465,2]
[362050287,1747948266287,-430.0,0.00022465,2]
[362050288,1747948266296,-713.8,0.00022465,2]
[362050289,1747948266307,-215.51766396,0.00022465,2]
[362050290,1747948266319,-1965.26233604,0.00022465,2]
[362050291,1747948266329,-430.0,0.00022465,2]
[362050292,1747948266339,-317.24014276,0.00022465,2]
[362050293,1747948266350,-38.79985724,0.00022465,2]
[362050294,1747948266360,-1947.88098233,0.00022486,7]
[362050295,1747948266369,-151.0,0.000226,6]
[362050296,1747948266379,-900.0,0.00022639,2]
[362050297,1747948266388,-960.0,0.00022658,2]
[362050298,1747948266398,-707.0,0.00022658,2]
[362050299,1747948266407,-2234.0,0.00022658,2]
[362050300,1747948266417,-500.0,0.00022697,2]
[362050301,1747948266430,-1500.0,0.000227,2]
[362050302,1747948266442,-1500.0,0.000227,2]
[362050303,1747948266453,-1947.88098233,0.00022728,7]
[362050304,1747948266463,-154.69439482,0.00022739,2]
[362050305,1747948266475,-275.30560518,0.00022739,2]
[362050306,1747948266484,-430.0,0.00022739,2]
[362050307,1747948266494,-430.0,0.00022739,2]
[362050308,1747948266504,-430.0,0.00022739,2]
[362050309,1747948266513,-203.15,0.00022739,2]
[362050310,1747948266523,-430.0,0.00022739,2]
[362050311,1747948266532,-430.0,0.00022739,2]
[362050312,1747948266544,-430.0,0.00022739,2]
[362050313,1747948266554,-430.0,0.00022739,2]
[362050314,1747948266563,-430.0,0.00022739,2]
[362050315,1747948266572,-430.0,0.00022739,2]
[362050316,1747948266583,-430.0,0.00022739,2]
[362050317,1747948266592,-563.24,0.00022739,2]
[362050318,1747948266602,-430.0,0.00022739,2]
[362050319,1747948266612,-430.0,0.00022739,2]
[362050320,1747948266624,-510.0,0.00022739,2]
[362050321,1747948266633,-836.2,0.00022739,2]
[362050322,1747948266643,-430.0,0.00022739,2]
[362050323,1747948266652,-480.1,0.00022739,2]
[362050324,1747948266662,-430.0,0.00022739,2]
[362050325,1747948266672,-430.0,0.00022739,2]
[362050326,1747948266681,-542.73,0.00022739,2]
[362050327,1747948266690,-929.18,0.00022739,2]
[362050328,1747948266700,-563.2,0.00022739,2]
[362050329,1747948266711,-1258.26417242,0.00022739,2]
[362050330,1747948266723,-903.02582758,0.00022739,2]
[362050331,1747948266733,-430.0,0.00022739,2]
[362050332,1747948266748,-711.67,0.00022739,2]
[362050333,1747948266758,-155.30063751,0.00022739,2]
[362050334,1747948266831,-430.0,0.00019178,2]
[362050335,1747948266842,-377.18846441,0.00019452,2]
[362050336,1747948266854,-52.81153559,0.00019452,2]
[362050337,1747948266864,-430.0,0.00019726,2]
[362050338,1747948266874,-274.69936249,0.00022739,2]
[362050339,1747948266886,-430.0,0.00022739,2]
[362050340,1747948266897,-430.0,0.00022739,2]
[362050341,1747948266908,-499.62,0.00022739,2]
[362050342,1747948266918,-430.0,0.00022739,2]
[362050343,1747948266928,-579.69,0.00022739,2]
[362050344,1747948266938,-2845.23,0.00022739,2]
[362050345,1747948266949,-430.0,0.00022739,2]
[362050346,1747948266959,-430.0,0.00022739,2]
[362050347,1747948266970,-430.0,0.00022739,2]
[362050348,1747948266981,-474.24,0.00022739,2]
[362050349,1747948266991,-430.0,0.00022739,2]
[362050350,1747948267001,-430.0,0.00022739,2]
[362050351,1747948267011,-240.26897001,0.00022739,2]
[362050352,1747948267024,-189.73102999,0.00022739,2]
[362050353,1747948267034,-236.9,0.00022739,2]
[362050354,1747948267044,-788.27,0.00022739,2]
[362050355,1747948267053,-430.0,0.00022739,2]
[362050356,1747948267064,-526.75,0.00022739,2]
[362050357,1747948267074,-539.5396166,0.00022739,2]
[362050358,1747948267087,-387.5303834,0.00022739,2]
[362050359,1747948267097,-430.0,0.00022739,2]
[362050360,1747948267106,-430.0,0.00022739,2]
[362050361,1747948267116,-430.0,0.00022739,2]
[362050362,1747948267126,-713.8,0.00022739,2]
[362050363,1747948267136,-2180.78,0.00022739,2]
[362050364,1747948267147,-1800.0,0.00022763,2]
[362050365,1747948267156,-1444.07826608,0.000229,2]
[362050366,1747948267167,-1947.88098233,0.00022969,8]
[362050367,1747948267177,-151.0,0.00023,9]
[362050368,1747948267187,-151.0,0.00023,8]
[362050369,1747948267198,-430.0,0.00023013,2]
[362050370,1747948267208,-430.0,0.00023013,2]
[362050371,1747948267219,-412.15,0.00023013,2]
[362050372,1747948267229,-430.0,0.00023013,2]
[362050373,1747948267239,-250.05,0.00023013,2]
[362050374,1747948267249,-301.28,0.00023013,2]
[362050375,1747948267258,-287.8,0.00023013,2]
[362050376,1747948267268,-430.0,0.00023013,2]
[362050377,1747948267280,-430.0,0.00023013,2]
[362050378,1747948267290,-836.2,0.00023013,2]
[362050379,1747948267300,-430.0,0.00023013,2]
[362050380,1747948267310,-480.1,0.00023013,2]
[362050381,1747948267322,-430.0,0.00023013,2]
[362050382,1747948267332,-379.38,0.00023013,2]
[362050383,1747948267342,-542.73,0.00023013,2]
[362050384,1747948267351,-929.18,0.00023013,2]
[362050385,1747948267361,-563.2,0.00023013,2]
[362050386,1747948267376,-2161.29,0.00023013,2]
[362050387,1747948267387,-430.0,0.00023013,2]
[362050388,1747948267397,-711.67,0.00023013,2]
[362050389,1747948267407,-563.73,0.00023013,2]
[362050390,1747948267416,-430.0,0.00023013,2]
[362050391,1747948267428,-497.66,0.00023013,2]
[362050392,1747948267438,-499.62,0.00023013,2]
[362050393,1747948267449,-430.0,0.00023013,2]
[362050394,1747948267459,-579.69,0.00023013,2]
[362050395,1747948267469,-2845.23,0.00023013,2]
[362050396,1747948267479,-430.0,0.00023013,2]
[362050397,1747948267489,-430.0,0.00023013,2]
[362050398,1747948267499,-430.0,0.00023013,2]
[362050399,1747948267508,-430.0,0.00023013,2]
[362050400,1747948267518,-430.0,0.00023013,2]
[362050401,1747948267528,-788.27,0.00023013,2]
[362050402,1747948267539,-430.0,0.00023013,2]
[362050403,1747948267706,-526.75,0.00023013,2]
[362050404,1747948267717,-927.07,0.00023013,2]
[362050405,1747948267727,-430.0,0.00023013,2]
[362050406,1747948267738,-430.0,0.00023013,2]
[362050407,1747948267748,-430.0,0.00023013,2]
[362050408,1747948267758,-713.8,0.00023013,2]
[362050409,1747948267768,-2180.78,0.00023013,2]
[362050410,1747948267779,-151.0,0.00023176,7]
[362050411,1747948267789,-151.0,0.00023176,7]
[362050412,1747948267799,-151.0,0.00023176,7]
[362050413,1747948267810,-1947.88098233,0.0002321,8]
[362050414,1747948267820,-2000.0,0.00023248,2]
[362050415,1747948267830,-2000.0,0.00023248,2]
[362050416,1747948267840,-463.89378231,0.00023287,2]
[362050417,1747948267849,-430.0,0.00023287,2]
[362050418,1747948267859,-430.0,0.00023287,2]
[362050419,1747948267869,-430.0,0.00023287,2]
[362050420,1747948267879,-836.2,0.00023287,2]
[362050421,1747948267889,-480.1,0.00023287,2]
[362050422,1747948267899,-430.0,0.00023287,2]
[362050423,1747948267910,-542.73,0.00023287,2]
[362050424,1747948267919,-929.18,0.00023287,2]
[362050425,1747948267930,-563.2,0.00023287,2]
[362050426,1747948267941,-2161.29,0.00023287,2]
[362050427,1747948267950,-563.3,0.00023287,2]
[362050428,1747948267960,-711.67,0.00023287,2]
[362050429,1747948267970,-166.45,0.00023287,2]
[362050430,1747948267981,-499.62,0.00023287,2]
[362050431,1747948267991,-430.0,0.00023287,2]
[362050432,1747948268002,-579.69,0.00023287,2]
[362050433,1747948268012,-2845.23,0.00023287,2]
[362050434,1747948268022,-430.0,0.00023287,2]
[362050435,1747948268032,-430.0,0.00023287,2]
[362050436,1747948268042,-430.0,0.00023287,2]
[362050437,1747948268052,-430.0,0.00023287,2]
[362050438,1747948268062,-340.0,0.00023287,2]
[362050439,1747948268071,-788.27,0.00023287,2]
[362050440,1747948268081,-430.0,0.00023287,2]
[362050441,1747948268091,-526.75,0.00023287,2]
[362050442,1747948268100,-927.07,0.00023287,2]
[362050443,1747948268110,-430.0,0.00023287,2]
[362050444,1747948268120,-430.0,0.00023287,2]
[362050445,1747948268130,-713.8,0.00023287,2]
[362050446,1747948268140,-2180.78,0.00023287,2]
[362050447,1747948268150,-3709.67,0.00023287,2]
[362050448,1747948268160,-2400.0,0.00023311,2]
[362050449,1747948268171,-3977.242748,0.000234,2]
[362050450,1747948268182,-250.0,0.00023401,2]
[362050451,1747948268192,-823.0,0.00023446,2]
[362050452,1747948268203,-1947.88098233,0.00023452,9]
[362050453,1747948268223,-1150.854738,0.00023493,2]
[362050454,1747948268237,-151.0,0.00023493,7]
[362050455,1747948268247,-454.569478,0.00023493,7]
[362050456,1747948268258,-151.0,0.00023493,7]
[362050457,1747948268268,-154.18607,0.00023493,7]
[362050458,1747948268278,-165.640027,0.00023493,7]
[362050459,1747948268290,-165.640027,0.00023493,7]
[362050460,1747948268300,-151.0,0.00023493,7]
[362050461,1747948268311,-151.0,0.00023493,7]
[362050462,1747948268322,-253.523243,0.00023493,2]
[362050463,1747948268332,-253.523243,0.00023493,2]
[362050464,1747948268342,-5002.464846,0.00023493,7]
[362050465,1747948268353,-5002.464846,0.00023493,7]
[362050466,1747948268363,-151.0,0.000235,9]
[362050467,1747948268374,-151.0,0.000235,5]
[362050468,1747948268384,-500.0,0.000235,2]
[362050469,1747948268394,-430.0,0.00023561,2]
[362050470,1747948268404,-525.73,0.00023561,2]
[362050471,1747948268415,-836.2,0.00023561,2]
[362050472,1747948268428,-480.1,0.00023561,2]
[362050473,1747948268439,-430.0,0.00023561,2]
[362050474,1747948268450,-542.73,0.00023561,2]
[362050475,1747948268461,-929.18,0.00023561,2]
[362050476,1747948268471,-563.2,0.00023561,2]
[362050477,1747948268482,-2161.29,0.00023561,2]
[362050478,1747948268492,-711.67,0.00023561,2]
[362050479,1747948268503,-499.62,0.00023561,2]
[362050480,1747948268514,-430.0,0.00023561,2]
[362050481,1747948268524,-579.69,0.00023561,2]
[362050482,1747948268534,-2845.23,0.00023561,2]
[362050483,1747948268549,-430.0,0.00023561,2]
[362050484,1747948268559,-430.0,0.00023561,2]
[362050485,1747948268569,-430.0,0.00023561,2]
[362050486,1747948268579,-430.0,0.00023561,2]
[362050487,1747948268591,-788.27,0.00023561,2]
[362050488,1747948268601,-526.75,0.00023561,2]
[362050489,1747948268611,-927.07,0.00023561,2]
[362050490,1747948268622,-470.46,0.00023561,2]
[362050491,1747948268632,-430.0,0.00023561,2]
[362050492,1747948268642,-713.8,0.00023561,2]
[362050493,1747948268654,-2180.78,0.00023561,2]
[362050494,1747948268664,-1947.88098233,0.00023693,9]
[362050495,1747948268675,-688.408646,0.00023698,7]
[362050496,1747948268684,-688.408646,0.00023698,7]
[362050497,1747948268695,-900.0,0.00023735,2]
[362050498,1747948268705,-185.392701,0.00023744,2]
[362050499,1747948268716,-2500.0,0.00023796,2]
[362050500,1747948268726,-2500.0,0.00023796,2]
[362050501,1747948268737,-430.0,0.00023835,2]
[362050502,1747948268747,-836.2,0.00023835,2]
[362050503,1747948268757,-480.1,0.00023835,2]
[362050504,1747948268768,-430.0,0.00023835,2]
[362050505,1747948268781,-542.73,0.00023835,2]
[362050506,1747948268791,-929.18,0.00023835,2]
[362050507,1747948268801,-563.2,0.00023835,2]
[362050508,1747948268812,-2161.29,0.00023835,2]
[362050509,1747948268822,-711.67,0.00023835,2]
[362050510,1747948268837,-499.62,0.00023835,2]
[362050511,1747948268847,-430.0,0.00023835,2]
[362050512,1747948268857,-579.69,0.00023835,2]
[362050513,1747948268868,-2845.23,0.00023835,2]
[362050514,1747948268878,-431.8,0.00023835,2]
[362050515,1747948268889,-430.0,0.00023835,2]
[362050516,1747948268898,-430.0,0.00023835,2]
[362050517,1747948268909,-430.0,0.00023835,2]
[362050518,1747948268919,-788.27,0.00023835,2]
[362050519,1747948268929,-526.75,0.00023835,2]
[362050520,1747948268939,-927.07,0.00023835,2]
[362050521,1747948268950,-430.0,0.00023835,2]
[362050522,1747948268959,-713.8,0.00023835,2]
[362050523,1747948268970,-2180.78,0.00023835,2]
[362050524,1747948268979,-3000.0,0.00023858,2]
[362050525,1747948268989,-1947.88098233,0.00023934,10]
[362050526,1747948268999,-2200.0,0.0002399,2]
[362050527,1747948269009,-13710.348421,0.00024,3]
[362050528,1747948269018,-859088.38327082,0.00024,30]
[362050529,1747948269035,-1383.54627258,0.00024,30]
[362050530,1747948269047,-1278.20333106,0.00024,30]
[362050531,1747948269060,-1058.42344795,0.00024,30]
[362050534,1747948568258,182.025653,0.00013699,2]
[362050543,1747949292803,167.26767741,0.00010618,2]
[362050544,1747949317915,1000.0,0.0001,2]
[362050724,1747949438271,-5000.0,0.00016941,2]
[362050725,1747949438283,-170.53192474,0.0001746,2]
[362050726,1747949438294,-474.0,0.00017798,2]
[362050727,1747949438304,-300.0,0.00017799,2]
[362050728,1747949438314,-300.0,0.00017799,2]
[362050729,1747949438324,-24900.0,0.000178,2]
[362050730,1747949438335,-500.0,0.00017999,2]
[362050731,1747949438345,-500.0,0.00017999,2]
[362050732,1747949438355,-321.12733862,0.00017999,2]
[362050734,1747949438365,-400.99160364,0.00017999,2]
[362050735,1747949438374,-500.0,0.00017999,2]
[362050736,1747949438385,-10074.68484696,0.00018,2]
[362050737,1747949438397,-38098.37220328,0.00018,2]
[362050738,1747949438407,-160.0,0.0001874,2]
[362050739,1747949438418,-200.53985225,0.00018882,2]
[362050740,1747949438428,-1077.47687784,0.000189,2]
[362050741,1747949438438,-441.75488087,0.00019178,2]
[362050742,1747949438448,-430.0,0.00019178,2]
[362050743,1747949438459,-430.0,0.00019178,2]
[362050744,1747949438469,-430.0,0.00019178,2]
[362050745,1747949438479,-430.0,0.00019178,2]
[362050746,1747949438490,-430.0,0.00019178,2]
[362050747,1747949438499,-490.0,0.00019178,2]
[362050748,1747949438510,-430.0,0.00019178,2]
[362050749,1747949438520,-430.0,0.00019178,2]
[362050750,1747949438532,-430.0,0.00019178,2]
[362050751,1747949438541,-430.0,0.00019178,2]
[362050752,1747949438551,-361.89,0.00019178,2]
[362050753,1747949438562,-450.0,0.00019178,2]
[362050754,1747949438572,-430.0,0.00019178,2]
[362050755,1747949438582,-430.0,0.00019178,2]
[362050756,1747949438591,-430.0,0.00019178,2]
[362050757,1747949438601,-430.0,0.00019178,2]
[362050758,1747949438611,-430.0,0.00019178,2]
[362050759,1747949438621,-430.0,0.00019178,2]
[362050760,1747949438631,-430.0,0.00019178,2]
[362050761,1747949438641,-430.0,0.00019178,2]
[362050762,1747949438651,-400.0,0.00019178,2]
[362050763,1747949438661,-430.0,0.00019178,2]
[362050764,1747949438671,-430.0,0.00019178,2]
[362050765,1747949438681,-450.0,0.00019178,2]
[362050766,1747949438691,-430.0,0.00019178,2]
[362050767,1747949438701,-430.0,0.00019178,2]
[362050768,1747949438710,-430.0,0.00019178,2]
[362050769,1747949438722,-430.0,0.00019178,2]
[362050770,1747949438731,-430.0,0.00019178,2]
[362050771,1747949438741,-430.0,0.00019178,2]
[362050772,1747949438751,-430.0,0.00019178,2]
[362050773,1747949438761,-430.0,0.00019178,2]
[362050774,1747949438771,-430.0,0.00019178,2]
[362050775,1747949438781,-430.0,0.00019178,2]
[362050776,1747949438791,-430.0,0.00019178,2]
[362050777,1747949438800,-430.0,0.00019178,2]
[362050778,1747949438811,-430.0,0.00019178,2]
[362050779,1747949438821,-430.0,0.00019178,2]
[362050780,1747949438831,-430.0,0.00019178,2]
[362050781,1747949438843,-430.0,0.00019178,2]
[362050782,1747949438853,-430.0,0.00019178,2]
[362050783,1747949438863,-430.0,0.00019178,2]
[362050784,1747949438873,-430.0,0.00019178,2]
[362050785,1747949438883,-490.0,0.00019178,2]
[362050786,1747949438893,-430.0,0.00019178,2]
[362050787,1747949438903,-430.0,0.00019178,2]
[362050788,1747949438912,-430.0,0.00019178,2]
[362050789,1747949438922,-430.0,0.00019178,2]
[362050790,1747949438934,-430.0,0.00019178,2]
[362050791,1747949438943,-430.0,0.00019178,2]
[362050792,1747949438953,-430.0,0.00019178,2]
[362050793,1747949438963,-430.0,0.00019178,2]
[362050794,1747949438973,-430.0,0.00019178,2]
[362050795,1747949438983,-430.0,0.00019178,2]
[362050796,1747949438992,-430.0,0.00019178,2]
[362050797,1747949439003,-430.0,0.00019178,2]
[362050798,1747949439015,-430.0,0.00019178,2]
[362050799,1747949439026,-430.0,0.00019178,2]
[362050800,1747949439036,-430.0,0.00019178,2]
[362050801,1747949439045,-430.0,0.00019178,2]
[362050802,1747949439055,-430.0,0.00019178,2]
[362050803,1747949439065,-430.0,0.00019178,2]
[362050804,1747949439075,-430.0,0.00019178,2]
[362050805,1747949439086,-430.0,0.00019178,2]
[362050806,1747949439095,-430.0,0.00019178,2]
[362050807,1747949439105,-430.0,0.00019178,2]
[362050808,1747949439115,-430.0,0.00019178,2]
[362050809,1747949439124,-430.0,0.00019178,2]
[362050810,1747949439134,-430.0,0.00019178,2]
[362050811,1747949439143,-430.0,0.00019178,2]
[362050812,1747949439152,-430.0,0.00019178,2]
[362050813,1747949439162,-430.0,0.00019178,2]
[362050814,1747949439171,-430.0,0.00019178,2]
[362050815,1747949439181,-430.0,0.00019178,2]
[362050816,1747949439191,-430.0,0.00019178,2]
[362050817,1747949439200,-430.0,0.00019178,2]
[362050818,1747949439210,-430.0,0.00019178,2]
[362050819,1747949439220,-430.0,0.00019178,2]
[362050820,1747949439230,-430.0,0.00019178,2]
[362050821,1747949439240,-430.0,0.00019178,2]
[362050822,1747949439251,-430.0,0.00019178,2]
[362050823,1747949439261,-430.0,0.00019178,2]
[362050824,1747949439271,-430.0,0.00019178,2]
[362050825,1747949439280,-1304.07,0.00019178,2]
[362050826,1747949439304,-340.58115141,0.00019178,2]
[362050827,1747949439314,-430.0,0.00019178,2]
[362050828,1747949439325,-430.0,0.00019178,2]
[362050829,1747949439337,-430.0,0.00019178,2]
[362050830,1747949439349,-430.0,0.00019178,2]
[362050831,1747949439360,-430.0,0.00019178,2]
[362050832,1747949439371,-430.0,0.00019178,2]
[362050833,1747949439382,-430.0,0.00019178,2]
[362050834,1747949439393,-430.0,0.00019178,2]
[362050835,1747949439405,-430.0,0.00019178,2]
[362050836,1747949439416,-430.0,0.00019178,2]